bitfinex/quotes_BTCUSD_20250414
["timestamp","ask_amount","ask_price","bid_price","bid_amount"]
[1744625557198,0.47453554,84472.0,84471.0,0.002]
[1744625557639,0.48907639,84472.0,84471.0,0.002]
[1744625557846,0.90557639,84472.0,84471.0,0.002]
[1744625558410,0.54396385,84467.0,84466.0,0.0008422]
[1744625558614,0.529445,84457.0,84456.0,0.0004222]
[1744625558816,0.529445,84457.0,84442.0,0.0008444]
[1744625558817,0.529476,84443.0,84442.0,0.0008444]
[1744625559059,0.65031754,84443.0,84442.0,0.0008444]
[1744625559517,1.09345061,84443.0,84442.0,0.0008444]
[1744625559872,1.09345061,84443.0,84442.0,0.0013077]
[1744625560083,1.09345061,84443.0,84442.0,0.0023077]
[1744625560343,1.10417932,84443.0,84442.0,0.0013077]
[1744625560698,1.10517932,84443.0,84442.0,0.0013077]
[1744625560894,1.10217932,84443.0,84442.0,0.0013077]
[1744625561135,1.10517932,84443.0,84442.0,0.0013077]
[1744625562165,0.529503,84431.0,84430.0,0.0008444]
[1744625562498,1.26798539,84431.0,84430.0,0.0008444]
[1744625562672,1.26798539,84431.0,84411.0,0.002]
[1744625562673,0.529546,84412.0,84411.0,0.002]
[1744625564190,0.531546,84412.0,84411.0,0.00213891]
[1744625565367,0.530546,84412.0,84411.0,0.00213891]
[1744625565661,0.54027711,84412.0,84411.0,0.00213891]
[1744625572996,0.66111865,84412.0,84411.0,0.00213891]
[1744625575984,0.6756595,84412.0,84411.0,0.00213891]
[1744625577303,1.0921595,84412.0,84411.0,0.00213891]
[1744625579938,1.21288798,84412.0,84411.0,0.00213891]
[1744625580266,1.0921595,84412.0,84411.0,0.00213891]
[1744625581113,1.12878819,84412.0,84411.0,0.00213891]
[1744625581790,1.16120085,84412.0,84411.0,0.00213891]
[1744625583395,1.12878819,84412.0,84411.0,0.00213891]
[1744625583730,1.0921595,84412.0,84411.0,0.00213891]
[1744625587988,1.07761865,84412.0,84411.0,0.00213891]
[1744625588267,1.25265865,84412.0,84411.0,0.00213891]
[1744625588962,0.79181711,84412.0,84411.0,0.00213891]
[1744625589278,1.13181711,84412.0,84411.0,0.00213891]
[1744625589703,0.94227111,84412.0,84411.0,0.00213891]
[1744625590062,0.76723111,84412.0,84411.0,0.0075337]
[1744625591075,0.76723111,84412.0,84411.0,0.1970817]
[1744625591665,0.76723111,84412.0,84411.0,0.01493594]
[1744625591865,0.7585,84412.0,84411.0,0.01493594]
[1744625592135,0.342,84412.0,84411.0,0.01493594]
[1744625592306,0.342,84412.0,84411.0,0.0075337]
[1744625593297,0.342,84412.0,84411.0,0.01493587]
[1744625597245,0.342,84412.0,84411.0,0.0075337]
[1744625597797,0.342,84412.0,84411.0,0.00213891]
[1744625599891,0.002,84412.0,84411.0,0.00213891]
[1744625600090,0.002,84412.0,84411.0,0.00754532]
[1744625600700,0.001,84412.0,84411.0,0.00754532]
[1744625600906,0.189544,84413.0,84411.0,0.00754532]
[1744625602105,0.001,84412.0,84411.0,0.00754532]
[1744625602308,0.189544,84413.0,84411.0,0.00754532]
[1744625602509,0.189544,84413.0,84411.0,0.00213891]
[1744625603284,0.31038554,84413.0,84411.0,0.00213891]
[1744625604624,0.12084154,84412.0,84411.0,0.00213891]
[1744625606484,0.46084154,84412.0,84411.0,0.00213891]
[1744625607284,0.47189467,84412.0,84411.0,0.00213891]
[1744625609574,0.90293552,84412.0,84411.0,0.00213891]
[1744625609974,0.94833552,84412.0,84411.0,0.00213891]
[1744625610227,0.94833552,84412.0,84386.0,0.0004224]
[1744625610228,0.41378785,84408.0,84405.0,0.00022681]
[1744625610421,0.54409985,84406.0,84405.0,0.00027314]
[1744625610630,0.66494139,84406.0,84405.0,0.00027314]
[1744625611575,0.67599452,84406.0,84405.0,0.00027314]
[1744625612086,0.67599452,84406.0,84405.0,0.00127314]
[1744625612324,0.68399452,84406.0,84405.0,0.00127314]
[1744625613927,1.79271452,84406.0,84405.0,0.00127314]
[1744625614136,1.79771452,84406.0,84405.0,0.00127314]
[1744625615403,2.21421452,84406.0,84405.0,0.00127314]
[1744625617060,2.334943,84406.0,84405.0,0.00127314]
[1744625617646,2.21421452,84406.0,84405.0,0.00127314]
[1744625622696,2.21421452,84406.0,84386.0,0.0004224]
[1744625622697,0.529602,84387.0,84386.0,0.0004224]
[1744625622921,0.529602,84387.0,84386.0,0.00046872]
[1744625622922,1.23650354,84387.0,84386.0,0.00046872]
[1744625623132,1.25104439,84387.0,84386.0,0.00046872]
[1744625623695,1.27408512,84387.0,84386.0,0.00046872]
[1744625624339,1.28413825,84387.0,84386.0,0.00046872]
[1744625625203,1.26409752,84387.0,84386.0,0.00046872]
[1744625626156,1.26509752,84387.0,84386.0,0.00046872]
[1744625626592,1.28712039,84387.0,84386.0,0.00046872]
[1744625626950,1.29618804,84387.0,84386.0,0.00046872]
[1744625627333,1.27416517,84387.0,84386.0,0.00046872]
[1744625628442,1.25962432,84387.0,84386.0,0.00046872]
[1744625630199,0.76856765,84387.0,84386.0,0.00046872]
[1744625630610,0.93816765,84387.0,84386.0,0.00046872]
[1744625631038,0.93816765,84387.0,84386.0,0.00600554]
[1744625631183,0.93816765,84387.0,84386.0,0.00046872]
[1744625631379,0.93816765,84387.0,84386.0,0.00604043]
[1744625633141,0.52166765,84387.0,84386.0,0.00604043]
[1744625636060,0.35206765,84387.0,84386.0,0.00604043]
[1744625637377,0.35206765,84387.0,84386.0,0.00046872]
[1744625637783,0.35206765,84387.0,84386.0,0.00603656]
[1744625637984,0.003,84387.0,84386.0,0.05103656]
[1744625638574,0.001,84387.0,84386.0,0.05103656]
[1744625638779,0.011849,84393.0,84388.0,0.01185]
[1744625638990,0.011849,84393.0,84390.0,0.011849]
[1744625639187,0.541435,84395.0,84390.0,0.011849]
[1744625639532,0.541435,84395.0,84391.0,0.00552907]
[1744625639958,0.541435,84395.0,84390.0,0.011849]
[1744625640158,0.541435,84395.0,84392.0,0.00552907]
[1744625640291,0.351849,84393.0,84390.0,0.011849]
[1744625641700,0.351849,84393.0,84390.0,0.013849]
[1744625642459,0.351849,84393.0,84391.0,0.001]
[1744625642884,0.34,84391.0,84390.0,0.002]
[1744625643290,0.34,84391.0,84390.0,0.003]
[1744625643646,0.34,84391.0,84388.0,0.01185]
[1744625644042,0.351849,84392.0,84391.0,0.002]
[1744625644286,0.189593,84391.0,84390.0,0.001]
[1744625644485,0.189593,84391.0,84390.0,0.003]
[1744625644682,0.189593,84391.0,84390.0,0.0521]
[1744625644988,0.189593,84391.0,84390.0,0.0501]
[1744625645427,0.189593,84391.0,84390.0,0.0491]
[1744625645940,0.189593,84391.0,84390.0,0.05558326]
[1744625647802,0.189593,84391.0,84390.0,0.00648326]
[1744625648005,0.189593,84391.0,84390.0,0.001]
[1744625648206,0.189602,84387.0,84386.0,0.00046872]
[1744625649652,0.001,84387.0,84386.0,0.00046872]
[1744625649851,0.190602,84387.0,84386.0,0.00594034]
[1744625650021,0.190602,84387.0,84386.0,0.00046872]
[1744625650263,0.190602,84387.0,84386.0,0.00594034]
[1744625650469,0.192602,84387.0,84386.0,0.00046872]
[1744625650669,0.192602,84387.0,84386.0,0.00594034]
[1744625650898,0.192602,84387.0,84386.0,0.00046872]
[1744625651329,0.192602,84387.0,84386.0,0.00594762]
[1744625651752,0.192602,84387.0,84386.0,0.00046872]
[1744625651944,0.192602,84387.0,84386.0,0.00594762]
[1744625652158,0.532602,84387.0,84386.0,0.00046872]
[1744625654620,0.343,84387.0,84386.0,0.00046872]
[1744625654850,0.343,84387.0,84386.0,0.00594762]
[1744625655125,0.343,84387.0,84386.0,0.00046872]
[1744625655325,0.343,84387.0,84386.0,0.00594762]
[1744625655523,0.343,84387.0,84386.0,0.00046872]
[1744625655744,0.343,84387.0,84386.0,0.00594762]
[1744625655950,0.342,84387.0,84386.0,0.00046872]
[1744625656148,0.342,84387.0,84386.0,0.00594762]
[1744625656272,0.34,84387.0,84386.0,0.00046872]
[1744625656719,0.34,84387.0,84386.0,0.00146872]
[1744625658149,0.34,84387.0,84386.0,0.00694762]
[1744625663670,0.34,84387.0,84386.0,0.00146872]
[1744625666947,0.34,84387.0,84386.0,0.00046872]
[1744625667343,0.342,84387.0,84386.0,0.00046872]
[1744625667551,0.46384154,84387.0,84386.0,0.00046872]
[1744625672513,0.343,84387.0,84386.0,0.00046872]
[1744625673678,0.343,84387.0,84386.0,0.00602929]
[1744625673835,0.343,84387.0,84386.0,0.00046872]
[1744625675575,0.46384154,84387.0,84386.0,0.00046872]
[1744625676217,0.57361226,84387.0,84386.0,0.00046872]
[1744625676414,0.52528239,84387.0,84386.0,0.00046872]
[1744625677898,0.51074154,84387.0,84386.0,0.00046872]
[1744625678123,0.46384154,84387.0,84386.0,0.00046872]
[1744625679295,0.343,84387.0,84386.0,0.00046872]
[1744625680190,0.46384154,84387.0,84386.0,0.00046872]
[1744625682775,0.46191154,84387.0,84386.0,0.00046872]
[1744625686688,0.62251154,84387.0,84386.0,0.00046872]
[1744625691938,0.68355239,84387.0,84386.0,0.00046872]
[1744625692781,0.69461828,84387.0,84386.0,0.00046872]
[1744625696351,0.64811828,84387.0,84386.0,0.00046872]
[1744625700463,0.63357743,84387.0,84386.0,0.00046872]
[1744625700705,0.62251154,84387.0,84386.0,0.00046872]
[1744625711581,0.62251154,84387.0,84386.0,0.00015038]
[1744625721276,0.50167,84387.0,84386.0,0.18975438]
[1744625721482,0.50167,84387.0,84386.0,0.00015038]
[1744625721681,0.50167,84387.0,84386.0,0.00576421]
[1744625721882,0.50167,84387.0,84386.0,0.00015038]
[1744625723264,0.62251154,84387.0,84386.0,0.00015038]
[1744625727051,1.03901154,84387.0,84386.0,0.00015038]
[1744625728328,1.17428087,84387.0,84386.0,0.00015038]
[1744625728586,1.05355239,84387.0,84386.0,0.00015038]
[1744625729770,0.01185,84384.0,84381.0,0.00184455]
[1744625729994,0.34,84382.0,84381.0,0.00189088]
[1744625730226,0.46084154,84382.0,84381.0,0.00189088]
[1744625731039,0.47269098,84382.0,84381.0,0.00189088]
[1744625732853,0.88919098,84382.0,84381.0,0.00189088]
[1744625733261,0.76834944,84382.0,84381.0,0.00189088]
[1744625733842,0.76834944,84382.0,84381.0,0.00929614]
[1744625734106,0.42834944,84382.0,84381.0,0.19891214]
[1744625734451,0.42834944,84382.0,84381.0,0.20544926]
[1744625735771,0.4165,84382.0,84381.0,0.20544926]
[1744625736284,0.4165,84382.0,84381.0,0.20844926]
[1744625736499,0.4165,84382.0,84381.0,0.21954364]
[1744625736972,0.4165,84382.0,84381.0,0.22786296]
[1744625738539,0.01185678,84383.0,84381.0,0.22786296]
[1744625738730,0.34,84388.0,84385.0,0.01185]
[1744625738932,0.34,84388.0,84386.0,0.189604]
[1744625739156,0.34,84388.0,84387.0,0.0139437]
[1744625739578,0.34,84388.0,84387.0,0.02503808]
[1744625743121,0.34,84388.0,84387.0,0.07393808]
[1744625743277,0.3520891,84388.0,84387.0,0.07393808]
[1744625745146,0.3520891,84388.0,84387.0,0.21464008]
[1744625745667,0.3520891,84388.0,84387.0,0.02503808]
[1744625746111,0.5416891,84388.0,84387.0,0.02503808]
[1744625746339,0.5416891,84388.0,84387.0,0.01849964]
[1744625746785,0.54138327,84388.0,84387.0,0.01849964]
[1744625747484,0.54138327,84388.0,84387.0,0.00740526]
[1744625747897,0.54138327,84388.0,84387.0,0.01309925]
[1744625749515,0.66222481,84388.0,84387.0,0.00740526]
[1744625751499,0.47262481,84388.0,84387.0,0.00740526]
[1744625752056,0.47262481,84388.0,84387.0,0.01285437]
[1744625755305,0.35178327,84388.0,84387.0,0.01285437]
[1744625758106,0.35178327,84388.0,84387.0,0.05925437]
[1744625758402,0.35178327,84388.0,84387.0,0.07033859]
[1744625760986,0.34769327,84388.0,84387.0,0.07033859]
[1744625762146,0.16288,84401.0,84395.0,0.189583]
[1744625762311,0.16288,84401.0,84396.0,0.05361241]
[1744625762496,0.16288,84401.0,84399.0,0.189575]
[1744625762694,0.16288,84401.0,84400.0,0.00775952]
[1744625763034,0.16288,84401.0,84400.0,0.01516478]
[1744625763035,0.50288,84401.0,84400.0,0.01516478]
[1744625763405,0.50288,84401.0,84400.0,0.026249]
[1744625763613,0.50488,84401.0,84400.0,0.026249]
[1744625764047,0.51373253,84401.0,84400.0,0.026249]
[1744625764472,0.51373253,84401.0,84400.0,0.071849]
[1744625764783,0.34985253,84401.0,84400.0,0.119249]
[1744625764924,0.0125362,84401.0,84400.0,0.119249]
[1744625765131,0.003,84401.0,84400.0,0.1299359]
[1744625765325,0.002,84401.0,84400.0,0.1299359]
[1744625765760,0.002,84401.0,84400.0,0.12756634]
[1744625765962,0.34,84414.0,84412.0,0.0469]
[1744625766138,0.34884631,84414.0,84412.0,0.236446]
[1744625766378,0.34884631,84414.0,84413.0,0.00771832]
[1744625766585,0.00884631,84414.0,84413.0,0.01512358]
[1744625766773,0.0237038,84416.0,84413.0,0.01512358]
[1744625767112,0.351846,84416.0,84413.0,0.01512358]
[1744625767312,0.351846,84416.0,84414.0,0.00740526]
[1744625767527,0.351846,84416.0,84415.0,0.00773402]
[1744625767996,0.351846,84416.0,84415.0,0.01513928]
[1744625768993,0.351846,84416.0,84415.0,0.00740526]
[1744625769194,0.541385,84416.0,84415.0,0.00773795]
[1744625769396,0.542385,84416.0,84413.0,4.633e-05]
[1744625769740,0.202385,84416.0,84414.0,0.00773402]
[1744625770078,0.34,84415.0,84414.0,0.00773402]
[1744625770273,0.34872957,84415.0,84414.0,0.00773402]
[1744625778590,0.529542,84414.0,84413.0,4.633e-05]
[1744625778746,0.65038354,84414.0,84413.0,4.633e-05]
[1744625779808,0.529542,84414.0,84413.0,4.633e-05]
[1744625780988,0.34,84414.0,84413.0,4.633e-05]
[1744625781300,0.34,84414.0,84413.0,0.00744858]
[1744625781619,0.34,84414.0,84413.0,0.01257622]
[1744625785407,0.34,84414.0,84413.0,0.01454134]
[1744625786229,0.34,84414.0,84413.0,0.00744858]
[1744625786529,0.34,84414.0,84413.0,0.01454135]
[1744625786738,0.34,84414.0,84413.0,0.02560284]
[1744625787617,0.34,84414.0,84413.0,0.02561122]
[1744625789014,0.529542,84414.0,84413.0,0.02561122]
[1744625789239,0.34,84414.0,84413.0,0.02561122]
[1744625791604,0.01172254,84416.0,84413.0,0.22699922]
[1744625791802,0.011845,84418.0,84413.0,0.22699922]
[1744625791803,0.011845,84418.0,84414.0,0.00740225]
[1744625792023,0.351845,84417.0,84414.0,0.01847212]
[1744625792351,0.36389944,84417.0,84415.0,0.0144874]
[1744625792705,0.36389944,84417.0,84416.0,0.00740225]
[1744625793176,0.01205444,84417.0,84416.0,0.01847212]
[1744625793355,0.01205444,84417.0,84416.0,0.07255727]
[1744625793562,0.0008444,84421.0,84419.0,0.23533]
[1744625793758,0.0008444,84421.0,84420.0,0.06383864]
[1744625793972,0.0008444,84421.0,84420.0,0.19575005]
[1744625794392,0.0008444,84421.0,84420.0,0.19338116]
[1744625794603,0.0008444,84421.0,84420.0,0.20169676]
[1744625795324,0.0018444,84421.0,84420.0,0.20669676]
[1744625796104,0.0018444,84421.0,84420.0,0.20906517]
[1744625797028,0.0008444,84421.0,84420.0,0.20406517]
[1744625797231,0.0018444,84421.0,84420.0,0.21257469]
[1744625797526,0.0018444,84421.0,84420.0,0.20957469]
[1744625797927,0.0028444,84421.0,84420.0,0.21257469]
[1744625801300,0.0028444,84421.0,84420.0,0.26057469]
[1744625801536,0.0028444,84421.0,84420.0,0.25820628]
[1744625803135,0.0028444,84421.0,84420.0,0.67690628]
[1744625809803,0.0028444,84421.0,84420.0,0.46106474]
[1744625810455,0.1923704,84421.0,84420.0,0.04236474]
[1744625810674,0.53920549,84421.0,84420.0,0.02304914]
[1744625810851,0.70874703,84421.0,84420.0,0.03104914]
[1744625811214,0.70774703,84421.0,84420.0,0.003]
[1744625811349,0.189542,84414.0,84413.0,4.633e-05]
[1744625812355,0.34,84420.0,84418.0,0.201378]
[1744625812580,0.34,84417.0,84414.0,0.201387]
[1744625813232,0.18954,84415.0,84413.0,4.633e-05]
[1744625813616,0.55804154,84414.0,84413.0,4.633e-05]
[1744625814597,0.97454154,84414.0,84413.0,4.633e-05]
[1744625814972,0.62128,84397.0,84396.0,0.01844344]
[1744625815176,1.32318154,84397.0,84396.0,0.01108732]
[1744625815581,1.33772239,84397.0,84396.0,4.633e-05]
[1744625815758,1.33772239,84397.0,84381.0,0.00184455]
[1744625815759,0.529613,84382.0,84381.0,0.00184455]
[1744625815974,0.65045454,84382.0,84381.0,0.00189088]
[1744625817061,0.529613,84382.0,84381.0,0.00189088]
[1744625817219,0.53858464,84382.0,84381.0,0.00189088]
[1744625817559,0.53858464,84382.0,84381.0,0.00289088]
[1744625818534,0.53858464,84382.0,84381.0,0.0092713]
[1744625818749,0.34,84382.0,84381.0,0.19250688]
[1744625819176,0.34,84382.0,84381.0,0.19881661]
[1744625819902,0.189589,84393.0,84386.0,0.201452]
[1744625820012,0.011849,84390.0,84387.0,0.01185]
[1744625820215,0.529602,84388.0,84387.0,0.00636865]
[1744625820525,0.65044354,84388.0,84387.0,0.00636865]
[1744625820656,0.189613,84382.0,84381.0,0.00289088]
[1744625821059,0.529613,84382.0,84381.0,0.00289088]
[1744625821836,0.65045454,84382.0,84381.0,0.00289088]
[1744625821994,1.06695454,84382.0,84381.0,0.00289088]
[1744625822401,1.06695454,84382.0,84381.0,0.00189088]
[1744625823009,1.06695454,84382.0,84381.0,0.00159459]
[1744625823247,1.06895454,84382.0,84381.0,0.00159459]
[1744625841200,1.06895454,84382.0,84381.0,0.0013108]
[1744625845376,0.7585,84382.0,84381.0,0.0013108]
[1744625845590,0.948113,84382.0,84381.0,0.0013108]
[1744625845805,0.948113,84382.0,84381.0,0.01240516]
[1744625846527,0.948113,84382.0,84381.0,0.0013108]
[1744625848244,0.7585,84382.0,84381.0,0.0013108]
[1744625848809,0.7585,84382.0,84381.0,0.01240521]
[1744625850106,0.342,84382.0,84381.0,0.0013108]
[1744625853952,0.46284154,84382.0,84381.0,0.0013108]
[1744625855598,0.51174154,84382.0,84381.0,0.0013108]
[1744625855926,1.06351087,84382.0,84381.0,0.0013108]
[1744625856123,1.09671116,84382.0,84381.0,0.0013108]
[1744625856549,0.529636,84372.0,84367.0,0.000422]
[1744625856912,1.06697754,84372.0,84367.0,0.000422]
[1744625858179,1.06797754,84372.0,84367.0,0.000422]
[1744625861274,1.23121754,84372.0,84367.0,0.000422]
[1744625863276,0.58074,84372.0,84369.0,0.011852]
[1744625863653,0.92074,84372.0,84371.0,0.00782864]
[1744625863829,0.4175,84372.0,84371.0,0.00782864]
[1744625864069,0.001,84372.0,84371.0,0.06394348]
[1744625864282,0.001,84372.0,84371.0,0.07225756]
[1744625864488,0.001,84372.0,84371.0,0.07462749]
[1744625864720,0.00869805,84390.0,84371.0,0.08571026]
[1744625864930,0.35171959,84393.0,84380.0,0.238518]
[1744625864931,0.01171959,84393.0,84380.0,0.238518]
[1744625865217,0.01171959,84393.0,84381.0,0.07257866]
[1744625865785,0.351848,84398.0,84381.0,0.07257866]
[1744625866008,0.011848,84396.0,84381.0,0.07852305]
[1744625866347,0.351848,84396.0,84381.0,0.07852305]
[1744625866887,0.011848,84397.0,84381.0,0.07852305]
[1744625867403,0.011848,84397.0,84381.0,0.08152305]
[1744625867584,0.011848,84397.0,84381.0,0.08352305]
[1744625868446,0.011848,84396.0,84381.0,0.08352305]
[1744625868631,0.351848,84396.0,84381.0,0.08352305]
[1744625868794,0.011849,84394.0,84381.0,0.08352305]
[1744625869202,0.351848,84396.0,84381.0,0.08352305]
[1744625869651,0.189584,84395.0,84381.0,0.08352305]
[1744625869947,0.011849,84393.0,84381.0,0.08352305]
[1744625870244,0.189584,84395.0,84381.0,0.08352305]
[1744625870406,0.011849,84394.0,84381.0,0.08352305]
[1744625871975,0.351848,84396.0,84381.0,0.08352305]
[1744625872168,0.011849,84394.0,84381.0,0.08352305]
[1744625873482,0.011849,84394.0,84381.0,0.07520897]
[1744625874187,0.011849,84395.0,84381.0,0.07520897]
[1744625874488,0.011849,84393.0,84381.0,0.07520897]
[1744625874826,0.01185,84387.0,84381.0,0.07520897]
[1744625875026,0.20146,84384.0,84381.0,0.02970897]
[1744625875270,0.189613,84383.0,84381.0,0.02970897]
[1744625875592,0.201454,84387.0,84382.0,0.01925594]
[1744625875815,0.01185,84385.0,84382.0,0.20886894]
[1744625875943,0.01185,84387.0,84383.0,0.00628307]
[1744625876300,0.01185,84386.0,84383.0,0.01368901]
[1744625876638,0.01185,84386.0,84383.0,0.00628307]
[1744625876842,0.201456,84386.0,84383.0,0.01736584]
[1744625877569,0.201456,84386.0,84383.0,0.02036584]
[1744625877961,0.189608,84385.0,84383.0,0.00928307]
[1744625878159,0.201456,84386.0,84383.0,0.00928307]
[1744625878785,0.201456,84386.0,84383.0,0.00628307]
[1744625879098,0.201456,84386.0,84383.0,0.005]
[1744625879301,0.189599,84389.0,84385.0,0.01185]
[1744625879512,0.011849,84390.0,84386.0,0.01185]
[1744625879704,0.011849,84390.0,84386.0,0.01814092]
[1744625880003,0.201447,84390.0,84386.0,0.01814092]
[1744625880210,0.011849,84389.0,84386.0,0.01814092]
[1744625880583,0.189589,84394.0,84389.0,0.011849]
[1744625880768,0.011849,84392.0,84389.0,0.011849]
[1744625880972,0.011849,84392.0,84390.0,0.00630746]
[1744625881175,0.011849,84392.0,84389.0,0.011849]
[1744625881377,0.011849,84391.0,84390.0,0.00630746]
[1744625881647,0.011849,84391.0,84388.0,0.01185]
[1744625881882,0.011849,84391.0,84390.0,0.00630746]
[1744625882061,0.011849,84391.0,84389.0,0.00630353]
[1744625882277,0.011849,84391.0,84390.0,0.00630746]
[1744625882777,0.011849,84391.0,84388.0,0.02025386]
[1744625882911,0.011849,84391.0,84390.0,0.00630746]
[1744625883119,0.34,84400.0,84396.0,0.011848]
[1744625883514,0.541422,84400.0,84395.0,0.011849]
[1744625883814,0.011848,84398.0,84395.0,0.011849]
[1744625884023,0.011848,84398.0,84396.0,0.00630943]
[1744625884024,0.011848,84397.0,84396.0,0.00630943]
[1744625884218,0.011848,84396.0,84393.0,0.0074037]
[1744625884419,0.20143,84396.0,84394.0,0.00630157]
[1744625884679,0.011849,84395.0,84392.0,0.0192527]
[1744625885100,0.011849,84395.0,84393.0,0.00629765]
[1744625887240,0.001,84395.0,84393.0,0.19588565]
[1744625887437,0.001,84395.0,84394.0,0.05877355]
[1744625887621,0.001,84395.0,84394.0,0.06502595]
[1744625888113,0.001,84395.0,84394.0,0.06265646]
[1744625888321,0.011847,84409.0,84406.0,0.011847]
[1744625888884,0.011847,84409.0,84407.0,0.0137075]
[1744625889087,0.01181224,84409.0,84407.0,0.00630355]
[1744625889290,0.529555,84408.0,84407.0,0.00630355]
[1744625889605,0.34,84407.0,84406.0,0.001]
[1744625889800,0.34,84407.0,84406.0,0.002]
[1744625890172,0.529564,84404.0,84403.0,0.00740282]
[1744625890448,0.529571,84401.0,84400.0,0.00740282]
[1744625891009,0.34,84397.0,84396.0,0.00740282]
[1744625891260,0.34,84397.0,84396.0,0.01365631]
[1744625891845,0.34,84397.0,84396.0,0.00740282]
[1744625892408,0.34,84397.0,84396.0,0.01140282]
[1744625892604,0.34,84397.0,84396.0,0.01440282]
[1744625893415,0.34,84397.0,84396.0,0.03170732]
[1744625893619,0.33972769,84397.0,84396.0,0.02545383]
[1744625893842,0.33972769,84397.0,84396.0,0.03170732]
[1744625894666,0.33972769,84397.0,84396.0,0.02545383]
[1744625894857,0.33972769,84397.0,84396.0,0.01805101]
[1744625895234,0.33972769,84397.0,84396.0,0.003]
[1744625895558,0.201454,84387.0,84385.0,0.00740414]
[1744625895978,0.201454,84387.0,84386.0,0.01363406]
[1744625896208,0.201454,84387.0,84386.0,0.02468507]
[1744625896390,0.66229554,84387.0,84386.0,0.02468507]
[1744625896598,1.08746588,84387.0,84386.0,0.01728093]
[1744625896888,1.08846588,84387.0,84386.0,0.01105101]
[1744625897175,0.529634,84373.0,84372.0,0.01105101]
[1744625897413,0.65047554,84373.0,84372.0,0.01105101]
[1744625897857,0.65047554,84373.0,84371.0,0.0004227]
[1744625897858,0.34,84372.0,84371.0,0.0004227]
[1744625898083,0.46084154,84372.0,84371.0,0.0004227]
[1744625898302,0.34,84372.0,84371.0,0.0004227]
[1744625898524,0.34,84372.0,84371.0,0.00056176]
[1744625898745,0.529636,84372.0,84371.0,0.00689963]
[1744625898981,0.529636,84372.0,84371.0,0.00056176]
[1744625899204,0.011851,84375.0,84371.0,0.00056176]
[1744625899205,0.34,84373.0,84371.0,0.00689963]
[1744625899427,0.001,84372.0,84371.0,0.00056176]
[1744625900324,0.011851,84374.0,84371.0,0.00056176]
[1744625900325,0.351851,84374.0,84371.0,0.00056176]
[1744625900795,0.001,84373.0,84371.0,0.00056176]
[1744625901032,0.001,84373.0,84372.0,0.189636]
[1744625901802,0.35185,84385.0,84380.0,0.011851]
[1744625902463,0.35185,84382.0,84378.0,0.011851]
[1744625903045,0.011851,84381.0,84378.0,0.011851]
[1744625903873,0.011851,84378.0,84373.0,0.011852]
[1744625904088,0.011851,84377.0,84373.0,0.01925696]
[1744625904358,0.011851,84377.0,84373.0,0.00740496]
[1744625904706,0.011851,84377.0,84374.0,0.011851]
[1744625904938,0.011851,84377.0,84374.0,0.20888696]
[1744625905171,0.351851,84379.0,84376.0,0.011851]
[1744625905911,0.012851,84381.0,84377.0,0.011851]
[1744625906144,0.34,84382.0,84379.0,0.011851]
[1744625906382,0.34,84382.0,84379.0,0.201471]
[1744625906625,0.011849,84391.0,84386.0,0.201454]
[1744625906862,0.201437,84394.0,84387.0,0.1896]
[1744625907083,0.011849,84391.0,84387.0,0.1896]
[1744625907313,0.34,84388.0,84387.0,0.1896]
[1744625907559,0.541452,84388.0,84385.0,0.0475]
[1744625908213,0.541452,84388.0,84386.0,0.00637101]
[1744625908503,0.541452,84388.0,84385.0,0.05935]
[1744625908728,0.541452,84388.0,84387.0,0.00637101]
[1744625908865,0.541452,84388.0,84385.0,0.05935]
[1744625909076,0.541452,84388.0,84386.0,0.00637101]
[1744625909505,0.541452,84388.0,84385.0,0.01185]
[1744625909705,0.541452,84388.0,84387.0,0.00637101]
[1744625909902,0.542452,84388.0,84385.0,0.01185]
[1744625910125,0.542452,84388.0,84387.0,0.00637494]
[1744625910322,0.01285,84388.0,84385.0,0.01185]
[1744625910560,0.01285,84388.0,84387.0,0.00610263]
[1744625910728,0.01285,84388.0,84385.0,0.01185]
[1744625910958,0.35185,84388.0,84387.0,0.0063409]
[1744625911146,0.35185,84388.0,84386.0,0.00633697]
[1744625911348,0.35185,84388.0,84385.0,0.01285]
[1744625911674,0.35185,84388.0,84387.0,0.00633697]
[1744625911954,0.01185,84388.0,84387.0,0.0063409]
[1744625912156,0.01185,84388.0,84385.0,0.01185]
[1744625912329,0.34,84389.0,84387.0,0.0063409]
[1744625912542,0.20142,84401.0,84396.0,0.011848]
[1744625912750,0.011848,84401.0,84397.0,0.189578]
[1744625912955,0.34,84398.0,84397.0,0.00633306]
[1744625913679,0.34,84398.0,84395.0,0.201432]
[1744625913879,0.529577,84398.0,84396.0,0.00632913]
[1744625914238,0.201429,84397.0,84393.0,0.011849]
[1744625915271,0.011849,84395.0,84393.0,0.00740407]
[1744625915473,0.201429,84397.0,84393.0,0.00740407]
[1744625915674,0.201432,84396.0,84393.0,0.00740407]
[1744625915877,0.201432,84396.0,84392.0,0.01925307]
[1744625916249,0.011848,84396.0,84392.0,0.01925307]
[1744625916800,0.011848,84396.0,84392.0,0.011849]
[1744625917199,0.201429,84397.0,84393.0,0.201438]
[1744625917561,0.001,84396.0,84393.0,0.201438]
[1744625918185,0.001,84396.0,84394.0,0.00631252]
[1744625918349,0.201429,84397.0,84394.0,0.00631252]
[1744625919203,0.001,84396.0,84394.0,0.00631252]
[1744625919569,0.001,84396.0,84393.0,0.011849]
[1744625920111,0.001,84396.0,84394.0,0.00631252]
[1744625920508,0.201429,84397.0,84394.0,0.00631252]
[1744625920864,0.202429,84397.0,84394.0,0.00631252]
[1744625921093,0.201429,84397.0,84394.0,0.00631252]
[1744625921483,0.001,84396.0,84394.0,0.00631252]
[1744625923571,0.011848,84397.0,84394.0,0.00631252]
[1744625924389,0.001,84396.0,84394.0,0.00631252]
[1744625924680,0.011848,84397.0,84394.0,0.00631252]
[1744625925022,0.012848,84397.0,84394.0,0.00631252]
[1744625925238,0.011848,84397.0,84394.0,0.00631252]
[1744625925446,0.52962433,84398.0,84394.0,0.20774652]
[1744625925679,0.001,84396.0,84394.0,0.20774652]
[1744625926081,0.001,84396.0,84395.0,0.0469]
[1744625926475,0.001,84396.0,84395.0,0.05319682]
[1744625927030,4.633e-05,84398.0,84396.0,0.189582]
[1744625927219,0.001,84397.0,84396.0,0.189582]